[Event "Romanian Open 2019"]
[Site "Alba Iulia"]
[Date "2019.10.29"]
[Round "2.12"]
[White "Harutjunyan, Gevorg"]
[Black "Stanojevic, Ilija"]
[Result "1-0"]
[ECO "A06"]
[WhiteElo "2428"]
[BlackElo "2045"]
[Annotator "NA"]
[PlyCount "101"]
[EventDate "2019.10.28"]
[EventType "swiss"]
[EventCountry "ROU"]
[SourceTitle "playchess.com"]
[Source "ChessBase"]
[SourceQuality "1"]
[TimeControl "5400+30"]

1. Nf3 {[%emt 0:00:00]} d5 {[%emt 0:01:07]} 2. g3 {[%emt 0:00:00]} c6 {[%emt 0:00:11]} 3. Bg2 {[%emt 0:00:01]} Bg4 {[%emt 0:00:22]} 4. c4 {[%emt 0:00:39]} e6 {[%emt 0:00:51]} 5. O-O {[%emt 0:04:20]} Bd6 {[%emt 0:01:14]} 6. Qb3 {[%emt 0:05:11]} Qc7 {[%emt 0:10:14]} 7. d4 {[%emt 0:03:30]} dxc4 {[%emt 0:03:43]} 8. Qxc4 {[%emt 0:00:17]} Nf6 {[%emt 0:00:12]} 9. Nbd2 {[%emt 0:06:08]} O-O {[%emt 0:07:47]} 10. e4 {[%emt 0:09:42]} Be7 {[%emt 0:03:27]} 11. Ne5 {[%emt 0:03:32]} Bh5 {[%emt 0:09:33]} 12. h3 {[%emt 0:03:24]} g5 {[%emt 0:05:21]} 13. Nb3 {[%emt 0:04:42]} Nfd7 {[%emt 0:07:03]} 14. Ng4 {[%emt 0:06:16]} Nb6 {[%emt 0:05:22]} 15. Qc2 {[%emt 0:03:36]} N8d7 {[%emt 0:01:45]} 16. f4 {[%emt 0:05:49]} Bxg4 {[%emt 0:01:20]} 17. hxg4 {[%emt 0:00:06]} Rac8 {[%emt 0:01:44]} 18. Be3 {[%emt 0:07:30]} f6 {[%emt 0:05:37]} 19. Nc5 {[%emt 0:05:18]} Nxc5 {[%emt 0:01:56]} 20. dxc5 {[%emt 0:00:05]} Nd7 {[%emt 0:00:03]} 21. Qc4 {[%emt 0:00:31]} Kg7 {[%emt 0:00:12]} 22. Rad1 {[%emt 0:05:06]} e5 {[%emt 0:01:40]} 23. b4 {[%emt 0:09:38]} exf4 {[%emt 0:01:37]} 24. gxf4 {[%emt 0:00:06]} gxf4 {[%emt 0:00:04]} 25. Bxf4 {[%emt 0:00:25]} Ne5 {[%emt 0:00:20]} 26. Qe6 {[%emt 0:00:11]} Rce8 {[%emt 0:03:19]} 27. Qf5 {[%emt 0:01:12]} Qc8 {[%emt 0:01:36]} 28. Qxc8 {[%emt 0:02:15]} Rxc8 {[%emt 0:00:02]} 29. Bxe5 {[%emt 0:00:11]} fxe5 {[%emt 0:00:01]} 30. Rd7 {[%emt 0:00:06]} Rf7 {[%emt 0:01:54]} 31. Rxf7+ {[%emt 0:01:38]} Kxf7 {[%emt 0:00:01]} 32. Rxb7 {[%emt 0:00:07]} a5 {[%emt 0:00:37]} 33. a3 {[%emt 0:02:06]} axb4 {[%emt 0:00:47]} 34. axb4 {[%emt 0:00:04]} h6 {[%emt 0:00:45]} 35. Bf1 {[%emt 0:01:46]} Rd8 {[%emt 0:00:51]} 36. Kf2 {[%emt 0:02:21]} Rd4 {[%emt 0:01:10]} 37. Kf3 {[%emt 0:00:15]} Ke8 {[%emt 0:02:36]} 38. Ba6 {[%emt 0:01:24]} Kd8 {[%emt 0:02:12]} 39. Rb6 {[%emt 0:01:51]} Bg5 {[%emt 0:00:07]} 40. Rb8+ {[%emt 0:04:09]} Kd7 {[%emt 0:01:43]} 41. Rb7+ {[%emt 0:00:17]} Kd8 {[%emt 0:00:14]} 42. b5 {[%emt 0:00:14]} Rd3+ {[%emt 0:00:55]} 43. Ke2 {[%emt 0:01:17]} Rd2+ {[%emt 0:00:56]} 44. Ke1 {[%emt 0:00:41]} cxb5 {[%emt 0:01:03]} 45. c6 {[%emt 0:00:20]} Rc2 {[%emt 0:00:39]} 46. Rd7+ {[%emt 0:00:36]} Ke8 {[%emt 0:00:24]} 47. Bxb5 {[%emt 0:01:30]} Rc1+ {[%emt 0:01:27]} 48. Ke2 {[%emt 0:00:05]} Rc2+ {[%emt 0:00:10]} 49. Kd3 {[%emt 0:00:09]} Rd2+ {[%emt 0:02:14]} 50. Kc3 {[%emt 0:01:12]} Rxd7 {[%emt 0:01:12]} 51. c7 {[%emt 0:00:06]} 1-0

[Event "Romanian Open 2019"]
[Site "Alba Iulia"]
[Date "2019.10.30"]
[Round "3.1"]
[White "Omelja, Artem"]
[Black "Fedorov, Alexei"]
[Result "1/2-1/2"]
[ECO "E91"]
[WhiteElo "2424"]
[BlackElo "2551"]
[Annotator "ChessBase"]
[PlyCount "57"]
[EventDate "2019.10.28"]
[EventType "swiss"]
[EventCountry "ROU"]
[SourceTitle "playchess.com"]
[Source "ChessBase"]
[SourceQuality "1"]
[TimeControl "5400+30"]

1. d4 {[%emt 0:00:00]} Nf6 {[%emt 0:00:00]} 2. c4 {[%emt 0:00:00]} g6 {[%emt 0:00:00]} 3. Nc3 {[%emt 0:00:00]} Bg7 {[%emt 0:00:00]} 4. e4 {[%emt 0:00:04]} d6 {[%emt 0:00:00]} 5. Nf3 {[%emt 0:00:23]} O-O {[%emt 0:00:13]} 6. Be2 {[%emt 0:00:09]} Bg4 {[%emt 0:01:11]} 7. Be3 {[%emt 0:01:06]} Nfd7 {[%emt 0:00:33]} 8. Qd2 {[%emt 0:03:16]} e5 {[%emt 0:06:21]} 9. d5 {[%emt 0:01:37]} f5 {[%emt 0:01:48]} 10. Bg5 {[%emt 0:02:16]} Qe8 {[%emt 0:01:53]} 11. Ng1 {[%emt 0:05:06]} Bxe2 {[%emt 0:04:34]} 12. Ngxe2 {[%emt 0:00:09]} Nc5 {[%emt 0:00:24]} 13. f3 {[%emt 0:00:40]} fxe4 {[%emt 0:02:06]} 14. fxe4 {[%emt 0:01:51]} Nbd7 {[%emt 0:03:09]} 15. Nc1 {[%emt 0:15:59]} Nf6 {[%emt 0:05:06]} 16. Qe2 {[%emt 0:00:11]} Qd7 {[%emt 0:05:33]} 17. Nb3 {[%emt 0:06:42]} Nxb3 {[%emt 0:11:40]} 18. axb3 {[%emt 0:00:09]} Nh5 {[%emt 0:01:10]} 19. g3 {[%emt 0:01:13]} Qh3 {[%emt 0:03:16]} 20. O-O-O {[%emt 0:02:40]} Rf7 {[%emt 0:00:09]} 21. Rhf1 {[%emt 0:02:01]} Raf8 {[%emt 0:00:19]} 22. Rxf7 {[%emt 0:01:07]} Rxf7 {[%emt 0:00:05]} 23. Be3 {[%emt 0:01:23]} a6 {[%emt 0:03:54]} 24. b4 {[%emt 0:03:49]} Nf6 {[%emt 0:04:37]} 25. Kc2 {[%emt 0:00:17]} h5 {[%emt 0:04:37]} 26. Bg1 {[%emt 0:02:52]} Qg4 {[%emt 0:08:49]} 27. Qxg4 {[%emt 0:09:33]} Nxg4 {[%emt 0:00:49]} 28. Kd3 {[%emt 0:00:09]} Nf2+ {[%emt 0:05:19]} 29. Bxf2 {[%emt 0:00:07]} 1/2-1/2

[Event "Romanian Open 2019"]
[Site "Alba Iulia"]
[Date "2019.10.30"]
[Round "3.2"]
[White "Pap, Misa"]
[Black "Secheres, Adrian-Simion"]
[Result "1-0"]
[ECO "B22"]
[WhiteElo "2432"]
[BlackElo "2397"]
[Annotator "NA"]
[PlyCount "59"]
[EventDate "2019.10.28"]
[EventType "swiss"]
[EventCountry "ROU"]
[SourceTitle "playchess.com"]
[Source "ChessBase"]
[SourceQuality "1"]
[TimeControl "5400+30"]

1. e4 {[%emt 0:00:00]} c5 {[%emt 0:00:00]} 2. c3 {[%emt 0:00:00]} d5 {[%emt 0:00:19]} 3. exd5 {[%emt 0:00:00]} Qxd5 {[%emt 0:00:06]} 4. d4 {[%emt 0:00:01]} Nc6 {[%emt 0:00:34]} 5. Nf3 {[%emt 0:00:06]} Bf5 {[%emt 0:00:54]} 6. Be3 {[%emt 0:03:44]} cxd4 {[%emt 0:00:31]} 7. Nxd4 {[%emt 0:00:40]} Nf6 {[%emt 0:00:18]} 8. Qb3 {[%emt 0:13:10]} Nxd4 {[%emt 0:13:35]} 9. Bxd4 {[%emt 0:01:08]} Bd7 {[%emt 0:16:21]} 10. Nd2 {[%emt 0:03:26]} e6 {[%emt 0:03:41]} 11. Be2 {[%emt 0:05:21]} Bc6 {[%emt 0:03:04]} 12. Bf3 {[%emt 0:00:44]} Qxb3 {[%emt 0:07:52]} 13. Bxc6+ {[%emt 0:01:10]} bxc6 {[%emt 0:00:06]} 14. axb3 {[%emt 0:00:15]} c5 {[%emt 0:03:35]} 15. Bxf6 {[%emt 0:00:32]} gxf6 {[%emt 0:00:02]} 16. Ke2 {[%emt 0:04:58]} Rg8 {[%emt 0:04:02]} 17. g3 {[%emt 0:00:50]} Rg5 {[%emt 0:00:23]} 18. Nc4 {[%emt 0:06:14]} Rd5 {[%emt 0:04:58]} 19. Ra3 {[%emt 0:01:01]} Be7 {[%emt 0:01:46]} 20. Rha1 {[%emt 0:00:13]} Rb8 {[%emt 0:00:32]} 21. Rxa7 {[%emt 0:11:41]} Rxb3 {[%emt 0:00:07]} 22. Rc7 {[%emt 0:00:26]} Bd8 {[%emt 0:08:36]} 23. Ra8 {[%emt 0:00:21]} Rb5 {[%emt 0:00:36]} 24. Rac8 {[%emt 0:08:43]} Kf8 {[%emt 0:05:17]} 25. Ke3 {[%emt 0:02:13]} Kg7 {[%emt 0:02:17]} 26. Ra7 {[%emt 0:00:56]} f5 {[%emt 0:06:12]} 27. f4 {[%emt 0:10:56]} Bf6 {[%emt 0:03:00]} 28. Rcc7 {[%emt 0:02:37]} Rd1 {[%emt 0:05:07]} 29. Rxf7+ {[%emt 0:00:08]} Kg6 {[%emt 0:00:07]} 30. Rxh7 {[%emt 0:01:13]} 1-0

[Event "Romanian Open 2019"]
[Site "Alba Iulia"]
[Date "2019.10.30"]
[Round "3.3"]
[White "Shishkin, Vadim"]
[Black "Banzea, Alexandru-Bogdan"]
[Result "1/2-1/2"]
[ECO "E21"]
[WhiteElo "2428"]
[BlackElo "2389"]
[Annotator "NA"]
[PlyCount "43"]
[EventDate "2019.10.28"]
[EventType "swiss"]
[EventCountry "ROU"]
[SourceTitle "playchess.com"]
[Source "ChessBase"]
[SourceQuality "1"]
[TimeControl "5400+30"]

1. d4 {[%emt 0:00:00]} Nf6 {[%emt 0:02:42]} 2. c4 {[%emt 0:00:00]} e6 {[%emt 0:00:05]} 3. Nc3 {[%emt 0:00:00]} Bb4 {[%emt 0:00:06]} 4. Nf3 {[%emt 0:03:25]} c5 {[%emt 0:00:16]} 5. g3 {[%emt 0:02:15]} Nc6 {[%emt 0:00:31]} 6. d5 {[%emt 0:14:58]} Na5 {[%emt 0:00:18]} 7. dxe6 {[%emt 0:12:51]} fxe6 {[%emt 0:01:13]} 8. Nd2 {[%emt 0:02:39]} Bxc3 {[%emt 0:07:23]} 9. bxc3 {[%emt 0:01:11]} b6 {[%emt 0:00:09]} 10. Bg2 {[%emt 0:07:27]} Bb7 {[%emt 0:02:07]} 11. Bxb7 {[%emt 0:00:26]} Nxb7 {[%emt 0:00:07]} 12. e4 {[%emt 0:00:29]} d6 {[%emt 0:03:31]} 13. O-O {[%emt 0:06:02]} Qc7 {[%emt 0:04:11]} 14. Qe2 {[%emt 0:00:33]} e5 {[%emt 0:03:00]} 15. f3 {[%emt 0:01:11]} Qc6 {[%emt 0:02:47]} 16. Rf2 {[%emt 0:10:10]} Qa4 {[%emt 0:04:17]} 17. Nf1 {[%emt 0:00:40]} Na5 {[%emt 0:00:44]} 18. Ne3 {[%emt 0:00:08]} O-O-O {[%emt 0:02:14]} 19. Qc2 {[%emt 0:01:12]} Qxc2 {[%emt 0:03:14]} 20. Rxc2 {[%emt 0:00:03]} h6 {[%emt 0:02:10]} 21. Bd2 {[%emt 0:02:58]} Rhf8 {[%emt 0:01:58]} 22. Kg2 {[%emt 0:03:28]} 1/2-1/2

[Event "Romanian Open 2019"]
[Site "Alba Iulia"]
[Date "2019.10.30"]
[Round "3.4"]
[White "Moksh Amit Doshi"]
[Black "Akash G"]
[Result "1/2-1/2"]
[ECO "E68"]
[WhiteElo "2328"]
[BlackElo "2449"]
[Annotator "NA"]
[PlyCount "132"]
[EventDate "2019.10.28"]
[EventType "swiss"]
[EventCountry "ROU"]
[SourceTitle "playchess.com"]
[Source "ChessBase"]
[SourceQuality "1"]
[TimeControl "5400+30"]

1. d4 {[%emt 0:00:00]} Nf6 {[%emt 0:10:18]} 2. c4 {[%emt 0:00:26]} g6 {[%emt 0:00:25]} 3. g3 {[%emt 0:00:28]} Bg7 {[%emt 0:00:06]} 4. Bg2 {[%emt 0:00:06]} O-O {[%emt 0:00:10]} 5. Nc3 {[%emt 0:00:05]} d6 {[%emt 0:00:09]} 6. Nf3 {[%emt 0:00:06]} Nbd7 {[%emt 0:00:06]} 7. O-O {[%emt 0:00:08]} e5 {[%emt 0:00:06]} 8. e4 {[%emt 0:00:06]} exd4 {[%emt 0:00:06]} 9. Nxd4 {[%emt 0:00:06]} Re8 {[%emt 0:00:05]} 10. b3 {[%emt 0:01:35]} Nc5 {[%emt 0:02:42]} 11. f3 {[%emt 0:00:17]} c6 {[%emt 0:04:52]} 12. Be3 {[%emt 0:03:07]} Ne6 {[%emt 0:12:43]} 13. Qd2 {[%emt 0:02:54]} Nxd4 {[%emt 0:05:20]} 14. Bxd4 {[%emt 0:00:40]} Qa5 {[%emt 0:01:16]} 15. Rad1 {[%emt 0:03:31]} Be6 {[%emt 0:07:18]} 16. Nd5 {[%emt 0:04:54]} Qxd2 {[%emt 0:00:20]} 17. Nxf6+ {[%emt 0:00:05]} Bxf6 {[%emt 0:00:05]} 18. Rxd2 {[%emt 0:00:09]} Be7 {[%emt 0:00:18]} 19. Be3 {[%emt 0:04:01]} a5 {[%emt 0:05:58]} 20. f4 {[%emt 0:08:08]} Bf8 {[%emt 0:04:14]} 21. a4 {[%emt 0:01:52]} Bf5 {[%emt 0:03:59]} 22. exf5 {[%emt 0:04:51]} Rxe3 {[%emt 0:00:07]} 23. fxg6 {[%emt 0:01:33]} Rxb3 {[%emt 0:01:40]} 24. gxh7+ {[%emt 0:01:25]} Kxh7 {[%emt 0:00:10]} 25. Be4+ {[%emt 0:02:15]} Kg7 {[%emt 0:04:10]} 26. Rb1 {[%emt 0:00:44]} Rb4 {[%emt 0:01:21]} 27. Bd3 {[%emt 0:03:20]} Rxa4 {[%emt 0:04:47]} 28. Rxb7 {[%emt 0:00:22]} Rb4 {[%emt 0:01:10]} 29. Rxb4 {[%emt 0:04:42]} axb4 {[%emt 0:00:08]} 30. Be4 {[%emt 0:01:29]} Ra1+ {[%emt 0:03:15]} 31. Kf2 {[%emt 0:00:09]} c5 {[%emt 0:00:24]} 32. Ke2 {[%emt 0:03:09]} Be7 {[%emt 0:02:00]} 33. g4 {[%emt 0:02:55]} Rc1 {[%emt 0:12:53]} 34. Rc2 {[%emt 0:00:28]} Ra1 {[%emt 0:00:57]} 35. Rd2 {[%emt 0:00:30]} b3 {[%emt 0:04:10]} 36. g5 {[%emt 0:01:04]} Bd8 {[%emt 0:01:42]} 37. Rxd6 {[%emt 0:03:44]} Ba5 {[%emt 0:00:06]} 38. Rd1 {[%emt 0:00:43]} Ra2+ {[%emt 0:01:14]} 39. Kf3 {[%emt 0:00:22]} Rxh2 {[%emt 0:02:32]} 40. f5 {[%emt 0:01:04]} b2 {[%emt 0:01:07]} 41. f6+ {[%emt 0:00:09]} Kf8 {[%emt 0:01:00]} 42. Rd7 {[%emt 0:00:56]} Rh3+ {[%emt 0:01:17]} 43. Kg4 {[%emt 0:03:21]} Re3 {[%emt 0:00:10]} 44. Bf5 {[%emt 0:00:50]} Re1 {[%emt 0:03:05]} 45. Rb7 {[%emt 0:01:10]} Bb4 {[%emt 0:00:40]} 46. Bd7 {[%emt 0:01:19]} Re8 {[%emt 0:00:41]} 47. Bf5 {[%emt 0:00:18]} Re1 {[%emt 0:00:09]} 48. Kh3 {[%emt 0:01:19]} Re3+ {[%emt 0:01:18]} 49. Kg2 {[%emt 0:00:09]} Re5 {[%emt 0:00:53]} 50. Kg3 {[%emt 0:03:35]} b1=Q {[%emt 0:00:34]} 51. Rb8+ {[%emt 0:00:24]} Re8 {[%emt 0:00:10]} 52. Rxe8+ {[%emt 0:00:03]} Kxe8 {[%emt 0:00:05]} 53. Bxb1 {[%emt 0:00:05]} Bd2 {[%emt 0:01:01]} 54. Kg4 {[%emt 0:00:06]} Kf8 {[%emt 0:00:18]} 55. Be4 {[%emt 0:00:08]} Be1 {[%emt 0:00:36]} 56. Bd5 {[%emt 0:00:17]} Bf2 {[%emt 0:00:39]} 57. Kf5 {[%emt 0:00:06]} Bh4 {[%emt 0:00:47]} 58. Kf4 {[%emt 0:01:49]} Bf2 {[%emt 0:00:11]} 59. Ke5 {[%emt 0:00:12]} Bg3+ {[%emt 0:00:15]} 60. Ke4 {[%emt 0:00:06]} Bf2 {[%emt 0:00:09]} 61. Kf5 {[%emt 0:00:56]} Bh4 {[%emt 0:00:06]} 62. Bxf7 {[%emt 0:00:22]} Kxf7 {[%emt 0:00:02]} 63. g6+ {[%emt 0:00:10]} Kg8 {[%emt 0:02:05]} 64. Ke6 {[%emt 0:00:05]} Kf8 {[%emt 0:00:32]} 65. g7+ {[%emt 0:00:19]} Kg8 {[%emt 0:00:10]} 66. Ke7 {[%emt 0:00:02]} Bg5 {[%emt 0:00:18]} 1/2-1/2

[Event "Romanian Open 2019"]
[Site "Alba Iulia"]
[Date "2019.10.30"]
[Round "3.5"]
[White "Ognean, Mihnea-Ionut"]
[Black "Harutjunyan, Gevorg"]
[Result "0-1"]
[ECO "D07"]
[WhiteElo "2285"]
[BlackElo "2428"]
[Annotator "NA"]
[PlyCount "76"]
[EventDate "2019.10.28"]
[EventType "swiss"]
[EventCountry "ROU"]
[SourceTitle "playchess.com"]
[Source "ChessBase"]
[SourceQuality "1"]
[TimeControl "5400+30"]

1. d4 {[%emt 0:00:00]} d5 {[%emt 0:00:00]} 2. c4 {[%emt 0:00:00]} Nc6 {[%emt 0:00:06]} 3. Nc3 {[%emt 0:00:00]} Nf6 {[%emt 0:00:10]} 4. cxd5 {[%emt 0:00:08]} Nxd5 {[%emt 0:00:07]} 5. Nf3 {[%emt 0:00:07]} e5 {[%emt 0:00:52]} 6. dxe5 {[%emt 0:05:26]} Bb4 {[%emt 0:03:27]} 7. Bd2 {[%emt 0:01:48]} Nxc3 {[%emt 0:00:18]} 8. bxc3 {[%emt 0:03:21]} Ba5 {[%emt 0:01:29]} 9. e3 {[%emt 0:05:02]} O-O {[%emt 0:06:50]} 10. Qa4 {[%emt 0:07:36]} Bd7 {[%emt 0:08:55]} 11. Qf4 {[%emt 0:00:58]} Qe7 {[%emt 0:02:45]} 12. Bd3 {[%emt 0:03:06]} Rae8 {[%emt 0:09:41]} 13. Ng5 {[%emt 0:08:24]} h6 {[%emt 0:02:35]} 14. Nh7 {[%emt 0:01:49]} Nxe5 {[%emt 0:02:27]} 15. Bc2 {[%emt 0:00:32]} Bb5 {[%emt 0:02:47]} 16. Nxf8 {[%emt 0:04:33]} Kxf8 {[%emt 0:07:49]} 17. Rb1 {[%emt 0:18:23]} Ba6 {[%emt 0:07:28]} 18. Rb3 {[%emt 0:18:57]} Rd8 {[%emt 0:02:08]} 19. f3 {[%emt 0:03:57]} c5 {[%emt 0:11:36]} 20. Bc1 {[%emt 0:05:15]} Bd3 {[%emt 0:05:14]} 21. Bd1 {[%emt 0:00:41]} g5 {[%emt 0:02:35]} 22. Qa4 {[%emt 0:01:05]} b6 {[%emt 0:00:40]} 23. h4 {[%emt 0:02:15]} Rd4 {[%emt 0:01:06]} 24. Qxa5 {[%emt 0:00:41]} Rxh4 {[%emt 0:01:10]} 25. Rxh4 {[%emt 0:00:35]} bxa5 {[%emt 0:00:45]} 26. Rxh6 {[%emt 0:00:41]} Kg7 {[%emt 0:00:22]} 27. Rh1 {[%emt 0:03:43]} Bc4 {[%emt 0:01:09]} 28. Bc2 {[%emt 0:01:22]} Bxb3 {[%emt 0:00:59]} 29. axb3 {[%emt 0:00:03]} c4 {[%emt 0:00:50]} 30. bxc4 {[%emt 0:00:28]} Nxc4 {[%emt 0:00:59]} 31. Ke2 {[%emt 0:00:02]} Qe5 {[%emt 0:00:21]} 32. Bd3 {[%emt 0:00:58]} Qxc3 {[%emt 0:00:55]} 33. f4 {[%emt 0:00:27]} gxf4 {[%emt 0:01:09]} 34. exf4 {[%emt 0:00:04]} a4 {[%emt 0:00:13]} 35. f5 {[%emt 0:00:56]} a3 {[%emt 0:03:40]} 36. Bh6+ {[%emt 0:01:12]} Kf6 {[%emt 0:00:49]} 37. Rc1 {[%emt 0:00:14]} Qb2+ {[%emt 0:01:19]} 38. Rc2 {[%emt 0:00:45]} a2 {[%emt 0:00:58]} 0-1

[Event "Romanian Open 2019"]
[Site "Alba Iulia"]
[Date "2019.10.30"]
[Round "3.6"]
[White "Gomes, Mary Ann"]
[Black "Filip, Lucian-Ioan"]
[Result "1/2-1/2"]
[ECO "A05"]
[WhiteElo "2268"]
[BlackElo "2418"]
[Annotator "NA"]
[PlyCount "144"]
[EventDate "2019.10.28"]
[EventType "swiss"]
[EventCountry "ROU"]
[SourceTitle "playchess.com"]
[Source "ChessBase"]
[SourceQuality "1"]
[TimeControl "5400+30"]

1. Nf3 {[%emt 0:00:00]} Nf6 {[%emt 0:00:00]} 2. g3 {[%emt 0:00:00]} d5 {[%emt 0:00:04]} 3. Bg2 {[%emt 0:00:04]} c6 {[%emt 0:00:23]} 4. b3 {[%emt 0:00:10]} Bf5 {[%emt 0:01:12]} 5. Bb2 {[%emt 0:00:08]} e6 {[%emt 0:00:11]} 6. d3 {[%emt 0:00:07]} h6 {[%emt 0:00:15]} 7. Nbd2 {[%emt 0:00:14]} Be7 {[%emt 0:01:01]} 8. O-O {[%emt 0:00:09]} O-O {[%emt 0:00:06]} 9. Qe1 {[%emt 0:00:05]} a5 {[%emt 0:00:33]} 10. a3 {[%emt 0:00:06]} Bh7 {[%emt 0:02:41]} 11. e4 {[%emt 0:00:09]} Qb6 {[%emt 0:34:09]} 12. Qe2 {[%emt 0:05:06]} Qa6 {[%emt 0:04:50]} 13. c4 {[%emt 0:01:42]} Nbd7 {[%emt 0:02:38]} 14. b4 {[%emt 0:15:33]} Qb6 {[%emt 0:15:19]} 15. exd5 {[%emt 0:08:01]} cxd5 {[%emt 0:00:17]} 16. Bd4 {[%emt 0:00:57]} Qd6 {[%emt 0:06:46]} 17. b5 {[%emt 0:09:42]} Rac8 {[%emt 0:06:46]} 18. Rfd1 {[%emt 0:03:37]} Rfd8 {[%emt 0:01:12]} 19. Bc3 {[%emt 0:03:38]} b6 {[%emt 0:00:11]} 20. Bxf6 Nxf6 21. Ne5 {[%emt 0:00:58]} Nd7 {[%emt 0:17:42]} 22. Nc6 {[%emt 0:01:14]} Re8 {[%emt 0:00:03]} 23. cxd5 {[%emt 0:06:21]} exd5 {[%emt 0:01:23]} 24. Re1 {[%emt 0:00:20]} Kf8 {[%emt 0:00:07]} 25. Qf3 {[%emt 0:03:49]} Bf6 {[%emt 0:00:35]} 26. d4 {[%emt 0:00:06]} Nb8 {[%emt 0:01:21]} 27. Qxd5 {[%emt 0:01:21]} Rxe1+ {[%emt 0:01:43]} 28. Rxe1 {[%emt 0:00:13]} Qxd5 {[%emt 0:00:02]} 29. Bxd5 {[%emt 0:00:08]} Nxc6 {[%emt 0:00:06]} 30. bxc6 {[%emt 0:01:21]} Bxd4 {[%emt 0:00:03]} 31. Nc4 {[%emt 0:00:13]} Bc5 {[%emt 0:00:17]} 32. Ne5 {[%emt 0:01:49]} Bf5 {[%emt 0:02:12]} 33. Nd7+ {[%emt 0:01:57]} Kg8 {[%emt 0:00:10]} 34. Nxc5 {[%emt 0:00:28]} bxc5 {[%emt 0:00:03]} 35. Rc1 {[%emt 0:00:24]} Be6 {[%emt 0:00:06]} 36. Bxe6 {[%emt 0:00:50]} fxe6 {[%emt 0:00:03]} 37. Rxc5 {[%emt 0:00:06]} Kf7 {[%emt 0:00:09]} 38. h4 {[%emt 0:02:56]} Ke7 {[%emt 0:00:10]} 39. h5 {[%emt 0:00:15]} Rc7 {[%emt 0:02:26]} 40. g4 {[%emt 0:03:46]} Kd6 {[%emt 0:00:05]} 41. Rxa5 {[%emt 0:00:04]} Kxc6 {[%emt 0:00:07]} 42. Ra4 {[%emt 0:00:38]} Kd5 {[%emt 0:02:21]} 43. Kg2 {[%emt 0:00:25]} Ke5 {[%emt 0:00:22]} 44. Kg3 {[%emt 0:00:57]} Rc3+ {[%emt 0:00:53]} 45. f3 {[%emt 0:00:08]} Kf6 {[%emt 0:00:45]} 46. Rf4+ {[%emt 0:00:13]} Ke7 {[%emt 0:00:03]} 47. a4 {[%emt 0:00:24]} Ra3 {[%emt 0:00:22]} 48. Rb4 {[%emt 0:01:18]} e5 {[%emt 0:00:46]} 49. Kf2 {[%emt 0:00:19]} Kf6 {[%emt 0:00:07]} 50. Ke2 {[%emt 0:06:28]} Kg5 {[%emt 0:00:46]} 51. Re4 {[%emt 0:02:09]} Kh4 {[%emt 0:01:00]} 52. Rxe5 {[%emt 0:02:55]} Rxa4 {[%emt 0:00:03]} 53. Re7 {[%emt 0:00:42]} Kg3 {[%emt 0:00:06]} 54. Rxg7 {[%emt 0:00:06]} Ra2+ {[%emt 0:00:10]} 55. Ke3 {[%emt 0:00:06]} Ra3+ {[%emt 0:00:04]} 56. Ke4 {[%emt 0:00:12]} Rxf3 {[%emt 0:01:25]} 57. g5 {[%emt 0:02:07]} hxg5 {[%emt 0:00:09]} 58. h6 {[%emt 0:01:51]} Kg4 {[%emt 0:00:53]} 59. h7 {[%emt 0:00:48]} Rh3 {[%emt 0:00:10]} 60. Ra7 {[%emt 0:01:32]} Rh6 {[%emt 0:00:56]} 61. Ke5 {[%emt 0:00:54]} Kf3 {[%emt 0:00:28]} 62. Rf7+ {[%emt 0:02:20]} Kg3 {[%emt 0:00:37]} 63. Kf5 {[%emt 0:01:09]} g4 {[%emt 0:00:52]} 64. Rg7 {[%emt 0:03:10]} Kf3 {[%emt 0:00:11]} 65. Kg5 {[%emt 0:00:08]} Rxh7 {[%emt 0:00:51]} 66. Rxh7 {[%emt 0:00:06]} g3 {[%emt 0:00:02]} 67. Rf7+ {[%emt 0:01:02]} Ke2 {[%emt 0:00:07]} 68. Kh4 {[%emt 0:01:11]} g2 {[%emt 0:00:03]} 69. Rg7 {[%emt 0:00:09]} Kf2 {[%emt 0:00:04]} 70. Rf7+ {[%emt 0:00:13]} Ke2 {[%emt 0:00:03]} 71. Rg7 {[%emt 0:00:06]} Kf2 {[%emt 0:00:04]} 72. Rf7+ {[%emt 0:00:05]} Ke2 {[%emt 0:00:05]} 1/2-1/2